[Event "Titled Tuesday Blitz May 31 Early 2022"]
[White "Cherniaiev, Tykhon"]
[Black "Al-Tarboush, Ward"]
[WhiteFideId "14182360"]
[BlackFideId "7601450"]
[WhiteElo "2289"]
[BlackElo "2294"]
[Result "0-1"]
[Round "11"]
[TimeControl "180+1"]
[Date "2022.05.31"]
[WhiteClock "0:00:09"]
[BlackClock "0:01:25"]

1. Nf3 {[%clk 0:03:00]}  d5 {[%clk 0:03:00]} 2. c4 {[%clk 0:02:54]}  c6 {[%clk 0:02:59]} 3. d4 {[%clk 0:02:54]}  Nf6 {[%clk 0:02:59]} 4. e3 {[%clk 0:02:54]}  e6 {[%clk 0:02:59]} 5. Nc3 {[%clk 0:02:55]}  Nbd7 {[%clk 0:03:00]} 6. Bd3 {[%clk 0:02:54]}  dxc4 {[%clk 0:03:00]} 7. Bxc4 {[%clk 0:02:55]}  b5 {[%clk 0:03:01]} 8. Bd3 {[%clk 0:02:55]}  Bd6 {[%clk 0:03:01]} 9. O-O {[%clk 0:02:54]}  O-O {[%clk 0:03:01]} 10. Ne4 {[%clk 0:02:54]}  Bc7 {[%clk 0:02:59]} 11. Qc2 {[%clk 0:02:52]}  Bb7 {[%clk 0:02:58]} 12. Nxf6+ {[%clk 0:02:47]}  Nxf6 {[%clk 0:02:59]} 13. e4 {[%clk 0:02:48]}  h6 {[%clk 0:02:58]} 14. h3 {[%clk 0:02:45]}  Qe7 {[%clk 0:02:53]} 15. Be3 {[%clk 0:02:44]}  Rad8 {[%clk 0:02:51]} 16. Rfd1 {[%clk 0:02:40]}  a6 {[%clk 0:02:44]} 17. a3 {[%clk 0:02:39]}  Bb8 {[%clk 0:02:45]} 18. b4 {[%clk 0:02:33]}  Nd7 {[%clk 0:02:45]} 19. Rac1 {[%clk 0:02:31]}  e5 {[%clk 0:02:43]} 20. Bf1 {[%clk 0:02:13]}  Rfe8 {[%clk 0:02:35]} 21. dxe5 {[%clk 0:01:47]}  Nxe5 {[%clk 0:02:36]} 22. Nxe5 {[%clk 0:01:45]}  Qxe5 {[%clk 0:02:36]} 23. f4 {[%clk 0:01:44]}  Qe7 {[%clk 0:02:25]} 24. Rxd8 {[%clk 0:01:42]}  Rxd8 {[%clk 0:02:26]} 25. Rd1 {[%clk 0:01:41]}  Rxd1 {[%clk 0:02:23]} 26. Qxd1 {[%clk 0:01:42]}  Bc7 {[%clk 0:02:22]} 27. Qd4 {[%clk 0:01:27]}  a5 {[%clk 0:02:15]} 28. Bd3 {[%clk 0:01:23]}  axb4 {[%clk 0:02:14]} 29. axb4 {[%clk 0:01:24]}  Bd6 {[%clk 0:02:12]} 30. e5 {[%clk 0:01:02]}  Bxb4 {[%clk 0:02:12]} 31. Qa7 {[%clk 0:01:02]}  g6 {[%clk 0:01:59]} 32. Qb8+ {[%clk 0:00:53]}  Kh7 {[%clk 0:01:50]} 33. f5 {[%clk 0:00:34]}  Bc5 {[%clk 0:01:49]} 34. Bxc5 {[%clk 0:00:27]}  Qxc5+ {[%clk 0:01:50]} 35. Kh2 {[%clk 0:00:28]}  gxf5 {[%clk 0:01:37]} 36. Bxf5+ {[%clk 0:00:15]}  Kg7 {[%clk 0:01:33]} 37. Qd6 {[%clk 0:00:15]}  Qxd6 {[%clk 0:01:32]} 38. exd6 {[%clk 0:00:16]}  Kf6 {[%clk 0:01:32]} 39. Bg4 {[%clk 0:00:11]}  c5 {[%clk 0:01:32]} 40. Kg3 {[%clk 0:00:11]}  b4 {[%clk 0:01:31]} 41. Bd1 {[%clk 0:00:09]}  Ke6 {[%clk 0:01:29]} 42. Bb3+ {[%clk 0:00:10]}  Kxd6 {[%clk 0:01:30]} 43. Bxf7 {[%clk 0:00:10]}  Bd5 {[%clk 0:01:29]} 44. Bg6 {[%clk 0:00:11]}  b3 {[%clk 0:01:27]} 45. Kf2 {[%clk 0:00:11]}  Ke5 {[%clk 0:01:25]} 46. g4 {[%clk 0:00:10]}  Be4 {[%clk 0:01:24]} 47. Bf7 {[%clk 0:00:09]}  b2 {[%clk 0:01:24]} 48. Ba2 {[%clk 0:00:10]}  b1=Q {[%clk 0:01:25]} 49. Bxb1 {[%clk 0:00:10]}  Bxb1 {[%clk 0:01:25]} 50. Ke3 {[%clk 0:00:09]}  c4 {[%clk 0:01:25]} 51. h4 {[%clk 0:00:08]}  c3 {[%clk 0:01:25]} 52. g5 {[%clk 0:00:07]}  h5 {[%clk 0:01:26]} 53. Ke2 {[%clk 0:00:06]}  Kf5 {[%clk 0:01:25]} 54. Ke3 {[%clk 0:00:07]}  Be4 {[%clk 0:01:25]} 55. Ke2 {[%clk 0:00:06]}  Kg4 {[%clk 0:01:24]} 56. Ke3 {[%clk 0:00:07]}  Bg6 {[%clk 0:01:24]} 57. Ke2 {[%clk 0:00:07]}  Kxh4 {[%clk 0:01:24]} 58. Ke3 {[%clk 0:00:08]}  Kxg5 {[%clk 0:01:24]} 59. Ke2 {[%clk 0:00:08]}  c2 {[%clk 0:01:25]} 60. Kd2 {[%clk 0:00:09]}  h4 {[%clk 0:01:25]} 61. Kc1 {[%clk 0:00:09]}  h3 {[%clk 0:01:25]} 62. Kd2 {[%clk 0:00:10]}  h2 {[%clk 0:01:26]} 63. Ke2 {[%clk 0:00:08]}  h1=Q {[%clk 0:01:26]} 64. Kd2 {[%clk 0:00:09]}  c1=Q+ {[%clk 0:01:24]} 65. Ke2 {[%clk 0:00:09]}  Qhf1# {[%clk 0:01:25]} 0-1


[Site "https://www.chess.com"]

[Event "Titled Tuesday Blitz May 31 Early 2022"]
[White "Chernomordik, Pavel"]
[Black "Kovacevic, Radmila"]
[WhiteFideId "2804530"]
[BlackFideId "933171"]
[WhiteElo "2220"]
[BlackElo "2115"]
[Result "1/2-1/2"]
[Round "11"]
[TimeControl "180+1"]
[Date "2022.06.01"]
[WhiteClock "0:00:17"]
[BlackClock "0:00:12"]

1. e4 {[%clk 0:03:00]}  e5 {[%clk 0:03:00]} 2. Nf3 {[%clk 0:02:57]}  d5 {[%clk 0:03:00]} 3. exd5 {[%clk 0:02:51]}  e4 {[%clk 0:02:59]} 4. Qe2 {[%clk 0:02:50]}  Nf6 {[%clk 0:02:59]} 5. Nc3 {[%clk 0:02:47]}  Be7 {[%clk 0:02:58]} 6. Nxe4 {[%clk 0:02:46]}  O-O {[%clk 0:02:58]} 7. d3 {[%clk 0:02:46]}  Nxd5 {[%clk 0:02:58]} 8. Bd2 {[%clk 0:02:41]}  f5 {[%clk 0:02:56]} 9. Ng3 {[%clk 0:02:41]}  Bf6 {[%clk 0:02:54]} 10. O-O-O {[%clk 0:02:40]}  Re8 {[%clk 0:02:54]} 11. Be3 {[%clk 0:02:37]}  f4 {[%clk 0:02:50]} 12. Ne4 {[%clk 0:02:36]}  fxe3 {[%clk 0:02:50]} 13. fxe3 {[%clk 0:02:36]}  Nb4 {[%clk 0:02:46]} 14. Kb1 {[%clk 0:02:35]}  Be6 {[%clk 0:02:43]} 15. c4 {[%clk 0:02:29]}  N8c6 {[%clk 0:02:30]} 16. Qd2 {[%clk 0:02:20]}  Bf5 {[%clk 0:02:23]} 17. Nxf6+ {[%clk 0:02:19]}  Qxf6 {[%clk 0:02:19]} 18. e4 {[%clk 0:02:19]}  Bg6 {[%clk 0:02:17]} 19. a3 {[%clk 0:02:16]}  Na6 {[%clk 0:02:16]} 20. b4 {[%clk 0:02:15]}  Nd4 {[%clk 0:02:03]} 21. Qb2 {[%clk 0:02:12]}  c5 {[%clk 0:01:57]} 22. b5 {[%clk 0:02:10]}  Nc7 {[%clk 0:01:55]} 23. Nxd4 {[%clk 0:02:10]}  cxd4 {[%clk 0:01:54]} 24. Be2 {[%clk 0:02:10]}  Ne6 {[%clk 0:01:53]} 25. Rhf1 {[%clk 0:02:09]}  Qe5 {[%clk 0:01:52]} 26. g3 {[%clk 0:02:08]}  a6 {[%clk 0:01:49]} 27. b6 {[%clk 0:02:07]}  Rac8 {[%clk 0:01:47]} 28. Bg4 {[%clk 0:02:06]}  Rc6 {[%clk 0:01:40]} 29. Ka1 {[%clk 0:02:03]}  Qc5 {[%clk 0:01:30]} 30. Rb1 {[%clk 0:02:02]}  h5 {[%clk 0:01:26]} 31. Bf5 {[%clk 0:02:00]}  Nf8 {[%clk 0:01:18]} 32. Bh3 {[%clk 0:01:56]}  Rxb6 {[%clk 0:01:16]} 33. Qa2 {[%clk 0:01:48]}  Rxb1+ {[%clk 0:01:09]} 34. Rxb1 {[%clk 0:01:46]}  Bf7 {[%clk 0:01:07]} 35. Rxb7 {[%clk 0:01:44]}  Qg5 {[%clk 0:00:51]} 36. Qc2 {[%clk 0:01:30]}  Qa5 {[%clk 0:00:49]} 37. Ka2 {[%clk 0:01:28]}  Ne6 {[%clk 0:00:46]} 38. Qf2 {[%clk 0:01:15]}  Nd8 {[%clk 0:00:21]} 39. Rd7 {[%clk 0:01:03]}  Qc3 {[%clk 0:00:17]} 40. Rxd4 {[%clk 0:00:59]}  Nc6 {[%clk 0:00:15]} 41. Rd7 {[%clk 0:00:58]}  Ne5 {[%clk 0:00:15]} 42. Rb7 {[%clk 0:00:54]}  Rf8 {[%clk 0:00:12]} 43. Qb2 {[%clk 0:00:48]}  Qxb2+ {[%clk 0:00:11]} 44. Kxb2 {[%clk 0:00:46]}  Nxd3+ {[%clk 0:00:12]} 45. Kc3 {[%clk 0:00:46]}  Ne5 {[%clk 0:00:13]} 46. c5 {[%clk 0:00:44]}  Ng4 {[%clk 0:00:13]} 47. Bxg4 {[%clk 0:00:41]}  hxg4 {[%clk 0:00:14]} 48. c6 {[%clk 0:00:39]}  Rc8 {[%clk 0:00:15]} 49. c7 {[%clk 0:00:39]}  Be6 {[%clk 0:00:15]} 50. Kd4 {[%clk 0:00:38]}  Kf7 {[%clk 0:00:15]} 51. Ke5 {[%clk 0:00:38]}  Ke7 {[%clk 0:00:16]} 52. Ra7 {[%clk 0:00:37]}  Kd7 {[%clk 0:00:16]} 53. Rxa6 {[%clk 0:00:36]}  Bc4 {[%clk 0:00:16]} 54. Rg6 {[%clk 0:00:34]}  Rg8 {[%clk 0:00:14]} 55. Rxg4 {[%clk 0:00:33]}  Kxc7 {[%clk 0:00:14]} 56. h4 {[%clk 0:00:29]}  Be2 {[%clk 0:00:14]} 57. Rg6 {[%clk 0:00:28]}  Re8+ {[%clk 0:00:13]} 58. Kf4 {[%clk 0:00:28]}  Re7 {[%clk 0:00:14]} 59. e5 {[%clk 0:00:27]}  Bd3 {[%clk 0:00:14]} 60. Rd6 {[%clk 0:00:24]}  Bb1 {[%clk 0:00:14]} 61. h5 {[%clk 0:00:23]}  Bh7 {[%clk 0:00:12]} 62. g4 {[%clk 0:00:23]}  Kb7 {[%clk 0:00:12]} 63. g5 {[%clk 0:00:22]}  Bg8 {[%clk 0:00:13]} 64. h6 {[%clk 0:00:21]}  gxh6 {[%clk 0:00:13]} 65. gxh6 {[%clk 0:00:21]}  Ba2 {[%clk 0:00:13]} 66. Rg6 {[%clk 0:00:20]}  Kc7 {[%clk 0:00:12]} 67. Rg7 {[%clk 0:00:20]}  Rxg7 {[%clk 0:00:12]} 68. hxg7 {[%clk 0:00:20]}  Kd7 {[%clk 0:00:12]} 69. Kf5 {[%clk 0:00:20]}  Ke7 {[%clk 0:00:12]} 70. Kg6 {[%clk 0:00:19]}  Bf7+ {[%clk 0:00:11]} 71. Kh7 {[%clk 0:00:19]}  Ke6 {[%clk 0:00:11]} 72. a4 {[%clk 0:00:18]}  Kxe5 {[%clk 0:00:11]} 73. a5 {[%clk 0:00:18]}  Kd6 {[%clk 0:00:11]} 74. a6 {[%clk 0:00:18]}  Kc7 {[%clk 0:00:11]} 75. a7 {[%clk 0:00:17]}  Kb7 {[%clk 0:00:12]} 76. g8=Q {[%clk 0:00:17]}  Bxg8+ {[%clk 0:00:11]} 77. Kxg8 {[%clk 0:00:17]}  Kxa7 {[%clk 0:00:12]} 1/2-1/2


[Site "https://www.chess.com"]

[Event "Titled Tuesday Blitz May 31 Early 2022"]
[White "Costachi, Mihnea"]
[Black "Fantinel, Thibault"]
[WhiteFideId "1217518"]
[BlackFideId "663395"]
[WhiteElo "2476"]
[BlackElo "2349"]
[Result "0-1"]
[Round "11"]
[TimeControl "180+1"]
[Date "2022.05.31"]
[WhiteClock "0:01:13"]
[BlackClock "0:00:12"]

1. e4 {[%clk 0:03:00]}  c5 {[%clk 0:02:59]} 2. Nf3 {[%clk 0:02:59]}  e6 {[%clk 0:03:00]} 3. b3 {[%clk 0:02:59]}  a6 {[%clk 0:02:57]} 4. Bb2 {[%clk 0:03:00]}  Nc6 {[%clk 0:02:58]} 5. Be2 {[%clk 0:02:58]}  d5 {[%clk 0:02:56]} 6. exd5 {[%clk 0:02:58]}  exd5 {[%clk 0:02:56]} 7. O-O {[%clk 0:02:59]}  Nf6 {[%clk 0:02:53]} 8. d4 {[%clk 0:02:57]}  cxd4 {[%clk 0:02:45]} 9. Nxd4 {[%clk 0:02:57]}  Bc5 {[%clk 0:02:45]} 10. Bf3 {[%clk 0:02:52]}  O-O {[%clk 0:02:42]} 11. Re1 {[%clk 0:02:46]}  Qb6 {[%clk 0:02:37]} 12. c3 {[%clk 0:02:43]}  Nxd4 {[%clk 0:02:31]} 13. cxd4 {[%clk 0:02:43]}  Bd6 {[%clk 0:02:26]} 14. Nc3 {[%clk 0:02:44]}  Be6 {[%clk 0:02:25]} 15. Na4 {[%clk 0:02:44]}  Qc7 {[%clk 0:01:55]} 16. Rc1 {[%clk 0:02:44]}  Bxh2+ {[%clk 0:01:47]} 17. Kh1 {[%clk 0:02:44]}  Qf4 {[%clk 0:01:48]} 18. g3 {[%clk 0:02:42]}  Qh6 {[%clk 0:01:43]} 19. Bg2 {[%clk 0:02:30]}  Bxg3+ {[%clk 0:01:40]} 20. Kg1 {[%clk 0:02:31]}  Qh2+ {[%clk 0:01:32]} 21. Kf1 {[%clk 0:02:31]}  Bh3 {[%clk 0:01:28]} 22. Qf3 {[%clk 0:02:29]}  Rfe8 {[%clk 0:00:54]} 23. Bxh3 {[%clk 0:02:03]}  Qxh3+ {[%clk 0:00:54]} 24. Qg2 {[%clk 0:02:03]}  Qxg2+ {[%clk 0:00:54]} 25. Kxg2 {[%clk 0:02:04]}  Bf4 {[%clk 0:00:55]} 26. Rcd1 {[%clk 0:02:00]}  h5 {[%clk 0:00:55]} 27. Nc5 {[%clk 0:01:53]}  b6 {[%clk 0:00:54]} 28. Rxe8+ {[%clk 0:01:52]}  Rxe8 {[%clk 0:00:52]} 29. Nd3 {[%clk 0:01:46]}  Bd6 {[%clk 0:00:52]} 30. Rc1 {[%clk 0:01:45]}  Re2 {[%clk 0:00:50]} 31. Rc6 {[%clk 0:01:45]}  Bf8 {[%clk 0:00:38]} 32. Rc8 {[%clk 0:01:44]}  Rd2 {[%clk 0:00:35]} 33. Ba3 {[%clk 0:01:44]}  Rxd3 {[%clk 0:00:35]} 34. Rxf8+ {[%clk 0:01:43]}  Kh7 {[%clk 0:00:36]} 35. Rxf7 {[%clk 0:01:44]}  Rd2 {[%clk 0:00:32]} 36. Rb7 {[%clk 0:01:37]}  Ne4 {[%clk 0:00:23]} 37. Rxb6 {[%clk 0:01:33]}  Rxf2+ {[%clk 0:00:21]} 38. Kg1 {[%clk 0:01:33]}  Rxa2 {[%clk 0:00:21]} 39. Bf8 {[%clk 0:01:32]}  h4 {[%clk 0:00:17]} 40. Rb7 {[%clk 0:01:30]}  Kg6 {[%clk 0:00:16]} 41. Rxg7+ {[%clk 0:01:29]}  Kf5 {[%clk 0:00:17]} 42. Rh7 {[%clk 0:01:20]}  Kg4 {[%clk 0:00:17]} 43. Be7 {[%clk 0:01:19]}  h3 {[%clk 0:00:17]} 44. Rg7+ {[%clk 0:01:19]}  Kf3 {[%clk 0:00:17]} 45. Rh7 {[%clk 0:01:17]}  Kg3 {[%clk 0:00:17]} 46. Rg7+ {[%clk 0:01:17]}  Kf3 {[%clk 0:00:17]} 47. Rh7 {[%clk 0:01:17]}  h2+ {[%clk 0:00:12]} 48. Rxh2 {[%clk 0:01:13]}  Ra1# {[%clk 0:00:12]} 0-1


[Site "https://www.chess.com"]

[Event "Titled Tuesday Blitz May 31 Early 2022"]
[White "Csonka, Balazs"]
[Black "Bas Mas, Jose Joaquin"]
[WhiteFideId "742910"]
[BlackFideId "22219064"]
[WhiteElo "2404"]
[BlackElo "2233"]
[Result "1-0"]
[Round "11"]
[TimeControl "180+1"]
[Date "2022.05.31"]
[WhiteClock "0:00:04"]
[BlackClock "0:00:02"]

1. e4 {[%clk 0:03:00]}  c5 {[%clk 0:02:57]} 2. Nf3 {[%clk 0:02:59]}  e6 {[%clk 0:02:53]} 3. d4 {[%clk 0:02:51]}  cxd4 {[%clk 0:02:54]} 4. Nxd4 {[%clk 0:02:51]}  a6 {[%clk 0:02:54]} 5. Nc3 {[%clk 0:02:48]}  Qc7 {[%clk 0:02:53]} 6. g3 {[%clk 0:02:47]}  Bb4 {[%clk 0:02:41]} 7. Bd2 {[%clk 0:02:29]}  Nf6 {[%clk 0:02:41]} 8. Bg2 {[%clk 0:02:29]}  d6 {[%clk 0:02:39]} 9. O-O {[%clk 0:02:26]}  O-O {[%clk 0:02:39]} 10. Nb3 {[%clk 0:02:02]}  Nc6 {[%clk 0:02:29]} 11. a3 {[%clk 0:02:01]}  Bxc3 {[%clk 0:02:18]} 12. Bxc3 {[%clk 0:02:02]}  e5 {[%clk 0:02:18]} 13. Qd2 {[%clk 0:01:48]}  h6 {[%clk 0:02:09]} 14. f4 {[%clk 0:01:40]}  Be6 {[%clk 0:01:59]} 15. fxe5 {[%clk 0:01:30]}  dxe5 {[%clk 0:01:54]} 16. Rxf6 {[%clk 0:01:31]}  gxf6 {[%clk 0:01:47]} 17. Qxh6 {[%clk 0:01:30]}  Ne7 {[%clk 0:01:41]} 18. Rf1 {[%clk 0:01:16]}  Rfd8 {[%clk 0:00:56]} 19. h4 {[%clk 0:01:02]}  Bxb3 {[%clk 0:00:47]} 20. cxb3 {[%clk 0:00:57]}  Rd6 {[%clk 0:00:47]} 21. Kh2 {[%clk 0:00:43]}  Qd8 {[%clk 0:00:38]} 22. Bb4 {[%clk 0:00:22]}  Rc6 {[%clk 0:00:38]} 23. Rxf6 {[%clk 0:00:12]}  Rxf6 {[%clk 0:00:37]} 24. Qxf6 {[%clk 0:00:12]}  Nc6 {[%clk 0:00:38]} 25. Qf5 {[%clk 0:00:06]}  Nxb4 {[%clk 0:00:35]} 26. axb4 {[%clk 0:00:06]}  Qe7 {[%clk 0:00:31]} 27. Qg4+ {[%clk 0:00:06]}  Kf8 {[%clk 0:00:29]} 28. Qh5 {[%clk 0:00:07]}  Kg7 {[%clk 0:00:23]} 29. Qg4+ {[%clk 0:00:06]}  Kf6 {[%clk 0:00:21]} 30. Qg5+ {[%clk 0:00:04]}  Ke6 {[%clk 0:00:22]} 31. Bh3+ {[%clk 0:00:04]}  Kd6 {[%clk 0:00:22]} 32. Qd2+ {[%clk 0:00:04]}  Kc7 {[%clk 0:00:21]} 33. Qc3+ {[%clk 0:00:04]}  Kb8 {[%clk 0:00:20]} 34. h5 {[%clk 0:00:04]}  Ka7 {[%clk 0:00:19]} 35. Qe3+ {[%clk 0:00:03]}  b6 {[%clk 0:00:19]} 36. h6 {[%clk 0:00:03]}  Rh8 {[%clk 0:00:19]} 37. Bf5 {[%clk 0:00:03]}  Qxb4 {[%clk 0:00:14]} 38. h7 {[%clk 0:00:03]}  Qe7 {[%clk 0:00:14]} 39. Kg2 {[%clk 0:00:02]}  Rd8 {[%clk 0:00:13]} 40. Qc3 {[%clk 0:00:03]}  a5 {[%clk 0:00:12]} 41. Qc6 {[%clk 0:00:03]}  Rd6 {[%clk 0:00:09]} 42. Qxd6 {[%clk 0:00:02]}  Qxd6 {[%clk 0:00:09]} 43. h8=Q {[%clk 0:00:02]}  Qd2+ {[%clk 0:00:09]} 44. Kh3 {[%clk 0:00:03]}  Qxb2 {[%clk 0:00:09]} 45. Qc8 {[%clk 0:00:03]}  Qxb3 {[%clk 0:00:08]} 46. Qc7+ {[%clk 0:00:03]}  Ka6 {[%clk 0:00:07]} 47. Qc6 {[%clk 0:00:03]}  Ka7 {[%clk 0:00:02]} 48. Bc8 {[%clk 0:00:04]}  a4 {[%clk 0:00:02]} 49. Qb7# {[%clk 0:00:04]} 1-0


[Site "https://www.chess.com"]

[Event "Titled Tuesday Blitz May 31 Early 2022"]
[White "Domingo Nunez, Ruben"]
[Black "Gaehwiler, Gabriel"]
[WhiteFideId "22245570"]
[BlackFideId "1314530"]
[WhiteElo "2376"]
[BlackElo "2383"]
[Result "1/2-1/2"]
[Round "11"]
[TimeControl "180+1"]
[Date "2022.05.31"]
[WhiteClock "0:00:35"]
[BlackClock "0:00:14"]

1. c4 {[%clk 0:03:00]}  Nf6 {[%clk 0:02:59]} 2. g3 {[%clk 0:03:00]}  g6 {[%clk 0:02:59]} 3. Bg2 {[%clk 0:03:00]}  Bg7 {[%clk 0:02:59]} 4. Nc3 {[%clk 0:03:01]}  O-O {[%clk 0:03:00]} 5. Nf3 {[%clk 0:03:00]}  d6 {[%clk 0:03:00]} 6. O-O {[%clk 0:03:00]}  c6 {[%clk 0:03:00]} 7. Rb1 {[%clk 0:03:00]}  Bf5 {[%clk 0:03:00]} 8. d3 {[%clk 0:03:00]}  a5 {[%clk 0:03:00]} 9. a3 {[%clk 0:02:53]}  Qc8 {[%clk 0:02:59]} 10. Re1 {[%clk 0:02:53]}  Re8 {[%clk 0:02:59]} 11. b4 {[%clk 0:02:52]}  Na6 {[%clk 0:03:00]} 12. b5 {[%clk 0:02:49]}  Nc5 {[%clk 0:03:00]} 13. Nd4 {[%clk 0:02:48]}  Bd7 {[%clk 0:02:59]} 14. bxc6 {[%clk 0:02:21]}  bxc6 {[%clk 0:02:59]} 15. Na4 {[%clk 0:02:22]}  Nxa4 {[%clk 0:02:27]} 16. Qxa4 {[%clk 0:02:20]}  Ra6 {[%clk 0:02:27]} 17. c5 {[%clk 0:02:17]}  e5 {[%clk 0:01:45]} 18. Nb3 {[%clk 0:02:17]}  d5 {[%clk 0:01:44]} 19. Nxa5 {[%clk 0:02:17]}  Qc7 {[%clk 0:01:35]} 20. Bd2 {[%clk 0:01:36]}  Rea8 {[%clk 0:01:33]} 21. Rb6 {[%clk 0:01:34]}  Rxb6 {[%clk 0:01:30]} 22. cxb6 {[%clk 0:01:35]}  Qxb6 {[%clk 0:01:31]} 23. Qb4 {[%clk 0:01:36]}  Qc7 {[%clk 0:01:18]} 24. Rb1 {[%clk 0:01:20]}  Bf8 {[%clk 0:01:16]} 25. Qb6 {[%clk 0:01:20]}  Qxb6 {[%clk 0:00:56]} 26. Rxb6 {[%clk 0:01:21]}  Bxa3 {[%clk 0:00:55]} 27. Nxc6 {[%clk 0:01:06]}  Bc5 {[%clk 0:00:54]} 28. Rb8+ {[%clk 0:01:06]}  Rxb8 {[%clk 0:00:48]} 29. Nxb8 {[%clk 0:01:07]}  Bb5 {[%clk 0:00:38]} 30. Bh3 {[%clk 0:00:57]}  e4 {[%clk 0:00:27]} 31. Bg5 {[%clk 0:00:41]}  exd3 {[%clk 0:00:20]} 32. exd3 {[%clk 0:00:41]}  Kg7 {[%clk 0:00:13]} 33. Bxf6+ {[%clk 0:00:33]}  Kxf6 {[%clk 0:00:14]} 34. Nd7+ {[%clk 0:00:34]}  Bxd7 {[%clk 0:00:14]} 35. Bxd7 {[%clk 0:00:35]} 1/2-1/2


[Site "https://www.chess.com"]

[Event "Titled Tuesday Blitz May 31 Early 2022"]
[White "Dudzinski, Pawel"]
[Black "Deviprasath, Sharvesh"]
[WhiteFideId "1117890"]
[BlackFideId "30938228"]
[WhiteElo "2011"]
[BlackElo "2102"]
[Result "0-1"]
[Round "11"]
[TimeControl "180+1"]
[Date "2022.06.01"]
[WhiteClock "0:00:06"]
[BlackClock "0:00:13"]

1. e4 {[%clk 0:03:00]}  c5 {[%clk 0:02:57]} 2. Nc3 {[%clk 0:03:00]}  d6 {[%clk 0:02:58]} 3. g3 {[%clk 0:03:01]}  g6 {[%clk 0:02:48]} 4. Bg2 {[%clk 0:03:01]}  Bg7 {[%clk 0:02:49]} 5. d3 {[%clk 0:03:01]}  Nc6 {[%clk 0:02:42]} 6. Be3 {[%clk 0:02:59]}  Rb8 {[%clk 0:02:42]} 7. Qd2 {[%clk 0:02:59]}  b5 {[%clk 0:02:42]} 8. Nd1 {[%clk 0:02:55]}  b4 {[%clk 0:02:42]} 9. a3 {[%clk 0:02:54]}  a5 {[%clk 0:02:43]} 10. Ne2 {[%clk 0:02:52]}  e6 {[%clk 0:02:39]} 11. f4 {[%clk 0:02:39]}  Nge7 {[%clk 0:02:26]} 12. d4 {[%clk 0:02:37]}  cxd4 {[%clk 0:02:21]} 13. Nxd4 {[%clk 0:02:38]}  O-O {[%clk 0:02:21]} 14. axb4 {[%clk 0:02:29]}  axb4 {[%clk 0:02:14]} 15. Nxc6 {[%clk 0:02:26]}  Nxc6 {[%clk 0:02:15]} 16. e5 {[%clk 0:02:26]}  d5 {[%clk 0:02:12]} 17. Bc5 {[%clk 0:02:26]}  Re8 {[%clk 0:02:06]} 18. Bd6 {[%clk 0:02:25]}  f6 {[%clk 0:02:05]} 19. Bxb8 {[%clk 0:02:21]}  Nxb8 {[%clk 0:02:06]} 20. exf6 {[%clk 0:02:18]}  Qxf6 {[%clk 0:02:07]} 21. Qxb4 {[%clk 0:02:15]}  Nc6 {[%clk 0:02:06]} 22. Qc3 {[%clk 0:02:08]}  Nd4 {[%clk 0:01:34]} 23. Ra4 {[%clk 0:01:59]}  e5 {[%clk 0:01:32]} 24. Bxd5+ {[%clk 0:01:54]}  Kh8 {[%clk 0:01:24]} 25. f5 {[%clk 0:01:51]}  Bd7 {[%clk 0:01:19]} 26. Ra7 {[%clk 0:01:36]}  Nb5 {[%clk 0:01:06]} 27. Qa5 {[%clk 0:01:05]}  Nxa7 {[%clk 0:01:07]} 28. Qxa7 {[%clk 0:01:05]}  Bxf5 {[%clk 0:01:08]} 29. O-O {[%clk 0:01:03]}  Bh6 {[%clk 0:00:57]} 30. Ne3 {[%clk 0:00:55]}  Qe7 {[%clk 0:00:54]} 31. Qb6 {[%clk 0:00:19]}  Qd8 {[%clk 0:00:24]} 32. Qxd8 {[%clk 0:00:12]}  Bxe3+ {[%clk 0:00:14]} 33. Kg2 {[%clk 0:00:13]}  Rxd8 {[%clk 0:00:14]} 34. c4 {[%clk 0:00:13]}  Bd4 {[%clk 0:00:12]} 35. b4 {[%clk 0:00:11]}  Kg7 {[%clk 0:00:12]} 36. h3 {[%clk 0:00:11]}  Bd7 {[%clk 0:00:09]} 37. b5 {[%clk 0:00:11]}  Rf8 {[%clk 0:00:09]} 38. Rxf8 {[%clk 0:00:06]}  Kxf8 {[%clk 0:00:08]} 39. g4 {[%clk 0:00:05]}  Ke7 {[%clk 0:00:09]} 40. Kf3 {[%clk 0:00:05]}  Kd6 {[%clk 0:00:09]} 41. Ke4 {[%clk 0:00:05]}  Be6 {[%clk 0:00:08]} 42. Bxe6 {[%clk 0:00:03]}  Kxe6 {[%clk 0:00:09]} 43. h4 {[%clk 0:00:03]}  h6 {[%clk 0:00:09]} 44. h5 {[%clk 0:00:03]}  g5 {[%clk 0:00:09]} 45. Kd3 {[%clk 0:00:02]}  Kd6 {[%clk 0:00:08]} 46. Ke4 {[%clk 0:00:02]}  Kc5 {[%clk 0:00:09]} 47. Kf5 {[%clk 0:00:01]}  Kxc4 {[%clk 0:00:09]} 48. Kg6 {[%clk 0:00:02]}  e4 {[%clk 0:00:10]} 49. Kxh6 {[%clk 0:00:03]}  e3 {[%clk 0:00:11]} 50. Kxg5 {[%clk 0:00:03]}  e2 {[%clk 0:00:12]} 51. b6 {[%clk 0:00:03]}  Bxb6 {[%clk 0:00:11]} 52. h6 {[%clk 0:00:03]}  e1=Q {[%clk 0:00:11]} 53. h7 {[%clk 0:00:04]}  Bd4 {[%clk 0:00:11]} 54. Kg6 {[%clk 0:00:04]}  Qe5 {[%clk 0:00:11]} 55. g5 {[%clk 0:00:05]}  Qg7+ {[%clk 0:00:11]} 56. Kf5 {[%clk 0:00:05]}  Qxh7+ {[%clk 0:00:11]} 57. g6 {[%clk 0:00:06]}  Qg7 {[%clk 0:00:11]} 58. Kg5 {[%clk 0:00:06]}  Kd5 {[%clk 0:00:12]} 59. Kf5 {[%clk 0:00:07]}  Qf6+ {[%clk 0:00:11]} 60. Kg4 {[%clk 0:00:06]}  Qxg6+ {[%clk 0:00:12]} 61. Kh3 {[%clk 0:00:06]}  Ke4 {[%clk 0:00:12]} 62. Kh2 {[%clk 0:00:06]}  Kf3 {[%clk 0:00:13]} 0-1


[Site "https://www.chess.com"]

[Event "Titled Tuesday Blitz May 31 Early 2022"]
[White "Goltsev, Dmitry"]
[Black "Sadubayev, Airat"]
[WhiteFideId "24176710"]
[BlackFideId "13713264"]
[WhiteElo "2258"]
[BlackElo "2234"]
[Result "1/2-1/2"]
[Round "11"]
[TimeControl "180+1"]
[Date "2022.05.31"]
[WhiteClock "0:01:43"]
[BlackClock "0:00:35"]

1. e4 {[%clk 0:03:00]}  c6 {[%clk 0:02:58]} 2. d4 {[%clk 0:03:00]}  d5 {[%clk 0:02:57]} 3. Nc3 {[%clk 0:03:01]}  dxe4 {[%clk 0:02:56]} 4. Nxe4 {[%clk 0:03:01]}  Bf5 {[%clk 0:02:56]} 5. Ng3 {[%clk 0:03:02]}  Bg6 {[%clk 0:02:55]} 6. Nh3 {[%clk 0:03:02]}  Nf6 {[%clk 0:02:53]} 7. Nf4 {[%clk 0:03:01]}  e5 {[%clk 0:02:52]} 8. dxe5 {[%clk 0:03:01]}  Qa5+ {[%clk 0:02:51]} 9. c3 {[%clk 0:02:59]}  Qxe5+ {[%clk 0:02:52]} 10. Qe2 {[%clk 0:02:59]}  Nbd7 {[%clk 0:02:51]} 11. Nxg6 {[%clk 0:02:57]}  hxg6 {[%clk 0:02:52]} 12. Qxe5+ {[%clk 0:02:58]}  Nxe5 {[%clk 0:02:52]} 13. Bf4 {[%clk 0:02:57]}  Bd6 {[%clk 0:02:31]} 14. O-O-O {[%clk 0:02:42]}  Nd3+ {[%clk 0:02:29]} 15. Bxd3 {[%clk 0:02:43]}  Bxf4+ {[%clk 0:02:29]} 16. Kc2 {[%clk 0:02:44]}  O-O-O {[%clk 0:02:28]} 17. Bc4 {[%clk 0:02:42]}  Rxd1 {[%clk 0:02:20]} 18. Kxd1 {[%clk 0:02:43]}  Ng4 {[%clk 0:01:53]} 19. Ke2 {[%clk 0:02:36]}  f5 {[%clk 0:01:53]} 20. h3 {[%clk 0:02:31]}  Ne5 {[%clk 0:01:50]} 21. Bb3 {[%clk 0:02:28]}  Re8 {[%clk 0:01:47]} 22. Rd1 {[%clk 0:02:21]}  Kc7 {[%clk 0:01:29]} 23. Nf1 {[%clk 0:02:07]}  Bg5 {[%clk 0:01:20]} 24. Ne3 {[%clk 0:02:03]}  f4 {[%clk 0:01:12]} 25. Nc2 {[%clk 0:01:56]}  Nc4+ {[%clk 0:01:04]} 26. Kf3 {[%clk 0:01:54]}  Ne5+ {[%clk 0:00:58]} 27. Ke2 {[%clk 0:01:51]}  Nc4+ {[%clk 0:00:52]} 28. Kf3 {[%clk 0:01:47]}  Ne5+ {[%clk 0:00:35]} 29. Ke2 {[%clk 0:01:43]} 1/2-1/2


[Site "https://www.chess.com"]